fUST/lending_fUST_20260504
["ID","MTS","AMOUNT","RATE_DAILY","PERIOD"]
[421530709,1777828253000,-602.5331058,0.00016712,2]
[421530710,1777828253000,-1559.0,0.00016712,2]
[421530706,1777828253000,-500.0,0.00016712,2]
[421530707,1777828253000,-500.0,0.00016712,2]
[421530711,1777828253000,-155.0,0.0001675,2]
[421530714,1777828253000,-500.36373239,0.00016773,2]
[421530717,1777828253000,-300.60628675,0.00016773,2]
[421530724,1777828253000,-500.0,0.00016773,2]
[421530725,1777828253000,-500.0,0.00016773,2]
[421530726,1777828253000,-500.0,0.00016773,2]
[421530721,1777828253000,-500.0,0.00016773,2]
[421530718,1777828253000,-500.0,0.00016773,2]
[421530719,1777828253000,-501.02081964,0.00016773,2]
[421530731,1777828253000,-160.0,0.00016814,3]
[421530730,1777828253000,-165.55598906,0.00016793,60]
[421530729,1777828253000,-150.09,0.00016789,2]
[421530738,1777828253000,-195.37348058,0.00016942,2]
[421530737,1777828253000,-3240.53046138,0.0001694,2]
[421530728,1777828253000,-213.95970552,0.00016778,2]
[421530727,1777828253000,-250.0,0.00016775,2]
[421530723,1777828253000,-500.0,0.00016773,2]
[421530722,1777828253000,-500.0,0.00016773,2]
[421530715,1777828253000,-500.0,0.00016773,2]
[421530720,1777828253000,-500.0,0.00016773,2]
[421530716,1777828253000,-500.0,0.00016773,2]
[421530807,1777828254000,-2970.96,0.00016986,2]
[421530815,1777828254000,-500.0,0.00016986,2]
[421530810,1777828254000,-500.0,0.00016986,2]
[421530806,1777828254000,-500.0,0.00016986,2]
[421530804,1777828254000,-1301.92,0.00016986,2]
[421530816,1777828254000,-943.63,0.00016986,2]
[421530795,1777828254000,-698.534536,0.00016986,2]
[421530799,1777828254000,-500.0,0.00016986,2]
[421530801,1777828254000,-500.0,0.00016986,2]
[421530797,1777828254000,-668.16347,0.00016986,2]
[421530800,1777828254000,-554.19,0.00016986,2]
[421530809,1777828254000,-1186.04,0.00016986,2]
[421530805,1777828254000,-500.0,0.00016986,2]
[421530808,1777828254000,-1612.85,0.00016986,2]
[421530826,1777828254000,-500.0,0.00016986,2]
[421530813,1777828254000,-911.66,0.00016986,2]
[421530814,1777828254000,-500.0,0.00016986,2]
[421530812,1777828254000,-500.0,0.00016986,2]
[421530817,1777828254000,-621.65,0.00016986,2]
[421530818,1777828254000,-595.0,0.00016986,2]
[421530830,1777828254000,-1071.04,0.00016986,2]
[421530819,1777828254000,-500.0,0.00016986,2]
[421530820,1777828254000,-500.0,0.00016986,2]
[421530822,1777828254000,-500.0,0.00016986,2]
[421530828,1777828254000,-554.09,0.00016986,2]
[421530829,1777828254000,-953.48,0.00016986,2]
[421530821,1777828254000,-723.85,0.00016986,2]
[421530825,1777828254000,-500.0,0.00016986,2]
[421530802,1777828254000,-500.0,0.00016986,2]
[421530811,1777828254000,-500.0,0.00016986,2]
[421530794,1777828254000,-668.16347,0.00016986,2]
[421530765,1777828254000,-500.0,0.00016973,2]
[421530792,1777828254000,-172.366858,0.00016986,2]
[421530764,1777828254000,-213.48682665,0.00016973,2]
[421530766,1777828254000,-500.0,0.00016973,2]
[421530776,1777828254000,-500.0,0.00016973,2]
[421530827,1777828254000,-500.0,0.00016986,2]
[421530767,1777828254000,-500.0,0.00016973,2]
[421530775,1777828254000,-160.3100405,0.00016973,2]
[421530769,1777828254000,-501.52312288,0.00016973,2]
[421530774,1777828254000,-220.7797337,0.00016973,2]
[421530773,1777828254000,-502.92592528,0.00016973,2]
[421530772,1777828254000,-500.0,0.00016973,2]
[421530770,1777828254000,-500.0,0.00016973,2]
[421530771,1777828254000,-500.0,0.00016973,2]
[421530768,1777828254000,-267.73205966,0.00016973,2]
[421530779,1777828254000,-500.0,0.00016973,2]
[421530798,1777828254000,-500.0,0.00016986,2]
[421530789,1777828254000,-500.0,0.00016986,2]
[421530791,1777828254000,-500.0,0.00016986,2]
[421530778,1777828254000,-167.23571907,0.00016973,2]
[421530783,1777828254000,-188.07969366,0.00016973,2]
[421530780,1777828254000,-500.0,0.00016973,2]
[421530781,1777828254000,-500.0,0.00016973,2]
[421530785,1777828254000,-11593.9,0.00016986,2]
[421530782,1777828254000,-362.89595116,0.00016973,2]
[421530788,1777828254000,-500.0,0.00016986,2]
[421530784,1777828254000,-155.0,0.00016985,2]
[421530787,1777828254000,-1175.35022,0.00016986,2]
[421530786,1777828254000,-15026.586799,0.00016986,2]
[421530793,1777828254000,-172.366858,0.00016986,2]
[421530803,1777828254000,-500.0,0.00016986,2]
[421530796,1777828254000,-500.0,0.00016986,2]
[421530790,1777828254000,-500.0,0.00016986,2]
[421530824,1777828254000,-500.0,0.00016986,2]
[421530777,1777828254000,-500.0,0.00016973,2]
[421530832,1777828254000,-500.0,0.00016986,2]
[421530861,1777828254000,-500.0,0.00016986,2]
[421530862,1777828254000,-500.0,0.00016986,2]
[421530866,1777828254000,-516.31,0.00016986,2]
[421530863,1777828254000,-1652.34,0.00016986,2]
[421530867,1777828254000,-500.0,0.00016986,2]
[421530868,1777828254000,-865.21,0.00016986,2]
[421530875,1777828254000,-500.0,0.00016986,2]
[421530873,1777828254000,-500.0,0.00016986,2]
[421530879,1777828254000,-500.0,0.00016986,2]
[421530877,1777828254000,-343.74996055,0.00016986,2]
[421530872,1777828254000,-500.0,0.00016986,2]
[421530874,1777828254000,-500.0,0.00016986,2]
[421530876,1777828254000,-701.46,0.00016986,2]
[421530880,1777828254000,-500.0,0.00016986,2]
[421530858,1777828254000,-594.21,0.00016986,2]
[421530878,1777828254000,-500.0,0.00016986,2]
[421530884,1777828254000,-500.0,0.00016986,2]
[421530881,1777828254000,-731.63,0.00016986,2]
[421530882,1777828254000,-500.0,0.00016986,2]
[421530886,1777828254000,-2603.27,0.00016986,2]
[421530885,1777828254000,-500.0,0.00016986,2]
[421530889,1777828254000,-343.20959335,0.00016986,2]
[421530888,1777828254000,-1170.42,0.00016986,2]
[421530887,1777828254000,-500.0,0.00016986,2]
[421530890,1777828254000,-500.0,0.00016986,2]
[421530891,1777828254000,-726.45,0.00016986,2]
[421530894,1777828254000,-612.85,0.00016986,2]
[421530893,1777828254000,-500.0,0.00016986,2]
[421530895,1777828254000,-500.0,0.00016986,2]
[421530823,1777828254000,-500.0,0.00016986,2]
[421530883,1777828254000,-500.0,0.00016986,2]
[421530864,1777828254000,-500.0,0.00016986,2]
[421530892,1777828254000,-500.0,0.00016986,2]
[421530865,1777828254000,-1163.5,0.00016986,2]
[421530860,1777828254000,-500.0,0.00016986,2]
[421530843,1777828254000,-240.49622555,0.00016986,2]
[421530833,1777828254000,-561.76,0.00016986,2]
[421530842,1777828254000,-2950.3269,0.00016986,2]
[421530835,1777828254000,-500.0,0.00016986,2]
[421530834,1777828254000,-500.0,0.00016986,2]
[421530844,1777828254000,-2950.3269,0.00016986,2]
[421530838,1777828254000,-500.0,0.00016986,2]
[421530836,1777828254000,-548.8,0.00016986,2]
[421530837,1777828254000,-500.0,0.00016986,2]
[421530841,1777828254000,-599.75,0.00016986,2]
[421530840,1777828254000,-500.0,0.00016986,2]
[421530839,1777828254000,-500.0,0.00016986,2]
[421530845,1777828254000,-500.0,0.00016986,2]
[421530848,1777828254000,-500.0,0.00016986,2]
[421530831,1777828254000,-500.0,0.00016986,2]
[421530847,1777828254000,-500.0,0.00016986,2]
[421530870,1777828254000,-500.0,0.00016986,2]
[421530871,1777828254000,-1118.61,0.00016986,2]
[421530869,1777828254000,-500.0,0.00016986,2]
[421530859,1777828254000,-551.39677293,0.00016986,2]
[421530849,1777828254000,-500.0,0.00016986,2]
[421530852,1777828254000,-500.0,0.00016986,2]
[421530857,1777828254000,-500.0,0.00016986,2]
[421530846,1777828254000,-2169.29,0.00016986,2]
[421530854,1777828254000,-500.0,0.00016986,2]
[421530850,1777828254000,-500.0,0.00016986,2]
[421530856,1777828254000,-555.7,0.00016986,2]
[421530851,1777828254000,-241.15613952,0.00016986,2]
[421530855,1777828254000,-500.0,0.00016986,2]
[421530853,1777828254000,-500.0,0.00016986,2]
[421530942,1777828255000,-500.0,0.00016986,2]
[421530941,1777828255000,-500.0,0.00016986,2]
[421530936,1777828255000,-500.0,0.00016986,2]
[421530935,1777828255000,-648.58,0.00016986,2]
[421530934,1777828255000,-500.0,0.00016986,2]
[421530924,1777828255000,-500.0,0.00016986,2]
[421530944,1777828255000,-500.0,0.00016986,2]
[421530932,1777828255000,-627.51,0.00016986,2]
[421530930,1777828255000,-500.0,0.00016986,2]
[421530931,1777828255000,-500.0,0.00016986,2]
[421530927,1777828255000,-925.69,0.00016986,2]
[421530933,1777828255000,-1602.7,0.00016986,2]
[421530943,1777828255000,-500.0,0.00016986,2]
[421530957,1777828255000,-1520.07,0.00016986,2]
[421530937,1777828255000,-500.0,0.00016986,2]
[421530938,1777828255000,-500.0,0.00016986,2]
[421530940,1777828255000,-181.41848212,0.00016986,2]
[421530946,1777828255000,-537.59,0.00016986,2]
[421530956,1777828255000,-500.0,0.00016986,2]
[421530955,1777828255000,-1213.04,0.00016986,2]
[421530948,1777828255000,-511.61,0.00016986,2]
[421530951,1777828255000,-3116.83,0.00016986,2]
[421530945,1777828255000,-1167.9,0.00016986,2]
[421530947,1777828255000,-500.0,0.00016986,2]
[421530953,1777828255000,-1471.14,0.00016986,2]
[421530929,1777828255000,-500.0,0.00016986,2]
[421530949,1777828255000,-500.0,0.00016986,2]
[421530939,1777828255000,-936.24,0.00016986,2]
[421530926,1777828255000,-674.18,0.00016986,2]
[421530912,1777828255000,-993.74,0.00016986,2]
[421530928,1777828255000,-500.0,0.00016986,2]
[421530954,1777828255000,-743.37,0.00016986,2]
[421530897,1777828255000,-500.0,0.00016986,2]
[421530896,1777828255000,-564.85,0.00016986,2]
[421530898,1777828255000,-1020.63,0.00016986,2]
[421530901,1777828255000,-500.0,0.00016986,2]
[421530899,1777828255000,-1667.53,0.00016986,2]
[421530902,1777828255000,-500.0,0.00016986,2]
[421530910,1777828255000,-500.0,0.00016986,2]
[421530900,1777828255000,-294.43182144,0.00016986,2]
[421530903,1777828255000,-500.0,0.00016986,2]
[421530908,1777828255000,-1322.7,0.00016986,2]
[421530906,1777828255000,-500.0,0.00016986,2]
[421530904,1777828255000,-500.0,0.00016986,2]
[421530925,1777828255000,-500.0,0.00016986,2]
[421530905,1777828255000,-808.58,0.00016986,2]
[421530907,1777828255000,-500.0,0.00016986,2]
[421530911,1777828255000,-500.0,0.00016986,2]
[421530919,1777828255000,-699.4,0.00016986,2]
[421530920,1777828255000,-500.0,0.00016986,2]
[421530921,1777828255000,-500.0,0.00016986,2]
[421530913,1777828255000,-550.52,0.00016986,2]
[421530914,1777828255000,-500.0,0.00016986,2]
[421530922,1777828255000,-1105.32,0.00016986,2]
[421530915,1777828255000,-500.0,0.00016986,2]
[421530916,1777828255000,-2517.67,0.00016986,2]
[421530917,1777828255000,-500.0,0.00016986,2]
[421530918,1777828255000,-500.0,0.00016986,2]
[421530923,1777828255000,-500.0,0.00016986,2]
[421530909,1777828255000,-500.0,0.00016986,2]
[421530950,1777828255000,-500.0,0.00016986,2]
[421530958,1777828255000,-500.0,0.00016986,2]
[421530959,1777828255000,-500.0,0.00016986,2]
[421530991,1777828255000,-500.0,0.00016986,2]
[421530994,1777828255000,-500.0,0.00016986,2]
[421530990,1777828255000,-3626.45,0.00016986,2]
[421530989,1777828255000,-500.0,0.00016986,2]
[421530993,1777828255000,-500.0,0.00016986,2]
[421530992,1777828255000,-164.33580136,0.00016986,2]
[421531000,1777828255000,-500.0,0.00016986,2]
[421531010,1777828255000,-4648.26,0.00016986,2]
[421531001,1777828255000,-940.435603,0.00016986,2]
[421531011,1777828255000,-500.0,0.00016986,2]
[421531002,1777828255000,-687.86,0.00016986,2]
[421530999,1777828255000,-500.0,0.00016986,2]
[421531004,1777828255000,-500.0,0.00016986,2]
[421530995,1777828255000,-500.0,0.00016986,2]
[421531007,1777828255000,-500.0,0.00016986,2]
[421531005,1777828255000,-500.0,0.00016986,2]
[421531006,1777828255000,-500.0,0.00016986,2]
[421531008,1777828255000,-500.0,0.00016986,2]
[421531009,1777828255000,-500.0,0.00016986,2]
[421531013,1777828255000,-500.0,0.00016986,2]
[421531012,1777828255000,-500.0,0.00016986,2]
[421531018,1777828255000,-500.0,0.00016986,2]
[421531019,1777828255000,-353.58071263,0.00016986,2]
[421531014,1777828255000,-500.0,0.00016986,2]
[421531017,1777828255000,-551.0,0.00016986,2]
[421531016,1777828255000,-500.0,0.00016986,2]
[421530952,1777828255000,-470.48420173,0.00016986,2]
[421531020,1777828255000,-500.0,0.00016986,2]
[421531003,1777828255000,-1941.76,0.00016986,2]
[421530998,1777828255000,-500.0,0.00016986,2]
[421531015,1777828255000,-798.75,0.00016986,2]
[421530988,1777828255000,-500.0,0.00016986,2]
[421530997,1777828255000,-500.0,0.00016986,2]
[421530964,1777828255000,-500.0,0.00016986,2]
[421530971,1777828255000,-500.0,0.00016986,2]
[421530960,1777828255000,-2461.64,0.00016986,2]
[421530962,1777828255000,-500.0,0.00016986,2]
[421530970,1777828255000,-501.05104561,0.00016986,2]
[421530961,1777828255000,-1539.6989,0.00016986,2]
[421530966,1777828255000,-500.0,0.00016986,2]
[421530965,1777828255000,-500.0,0.00016986,2]
[421530968,1777828255000,-500.0,0.00016986,2]
[421530967,1777828255000,-500.0,0.00016986,2]
[421530972,1777828255000,-874.94,0.00016986,2]
[421530984,1777828255000,-361.24558428,0.00016986,2]
[421530976,1777828255000,-819.54,0.00016986,2]
[421530969,1777828255000,-500.0,0.00016986,2]
[421530974,1777828255000,-906.69,0.00016986,2]
[421530996,1777828255000,-989.18,0.00016986,2]
[421530986,1777828255000,-555.46,0.00016986,2]
[421530987,1777828255000,-687.47,0.00016986,2]
[421530985,1777828255000,-704.25,0.00016986,2]
[421530983,1777828255000,-182.122467,0.00016986,2]
[421530980,1777828255000,-500.0,0.00016986,2]
[421530982,1777828255000,-500.0,0.00016986,2]
[421530978,1777828255000,-500.0,0.00016986,2]
[421530979,1777828255000,-500.0,0.00016986,2]
[421530977,1777828255000,-621.12258455,0.00016986,2]
[421530975,1777828255000,-500.0,0.00016986,2]
[421530973,1777828255000,-1720.93,0.00016986,2]
[421530981,1777828255000,-500.0,0.00016986,2]
[421531059,1777828256000,-2124.33,0.00016986,2]
[421531061,1777828256000,-1351.81,0.00016986,2]
[421531054,1777828256000,-607.97,0.00016986,2]
[421531056,1777828256000,-500.0,0.00016986,2]
[421531053,1777828256000,-500.0,0.00016986,2]
[421531055,1777828256000,-500.0,0.00016986,2]
[421531063,1777828256000,-701.14,0.00016986,2]
[421531064,1777828256000,-500.0,0.00016986,2]
[421531057,1777828256000,-500.0,0.00016986,2]
[421531052,1777828256000,-500.0,0.00016986,2]
[421531065,1777828256000,-807.37,0.00016986,2]
[421531058,1777828256000,-1210.74,0.00016986,2]
[421531070,1777828256000,-500.0,0.00016986,2]
[421531060,1777828256000,-500.0,0.00016986,2]
[421531066,1777828256000,-1004.48,0.00016986,2]
[421531067,1777828256000,-7043.71,0.00016986,2]
[421531068,1777828256000,-500.0,0.00016986,2]
[421531072,1777828256000,-199.07454106,0.00016986,2]
[421531076,1777828256000,-500.0,0.00016986,2]
[421531073,1777828256000,-500.0,0.00016986,2]
[421531074,1777828256000,-3048.74,0.00016986,2]
[421531071,1777828256000,-693.33,0.00016986,2]
[421531079,1777828256000,-500.0,0.00016986,2]
[421531075,1777828256000,-500.0,0.00016986,2]
[421531049,1777828256000,-500.0,0.00016986,2]
[421531062,1777828256000,-500.0,0.00016986,2]
[421531044,1777828256000,-6923.22,0.00016986,2]
[421531030,1777828256000,-500.0,0.00016986,2]
[421531048,1777828256000,-502.42,0.00016986,2]
[421531023,1777828256000,-500.0,0.00016986,2]
[421531024,1777828256000,-500.0,0.00016986,2]
[421531021,1777828256000,-500.0,0.00016986,2]
[421531022,1777828256000,-542.18486109,0.00016986,2]
[421531026,1777828256000,-582.92,0.00016986,2]
[421531037,1777828256000,-500.0,0.00016986,2]
[421531036,1777828256000,-500.0,0.00016986,2]
[421531027,1777828256000,-1053.18,0.00016986,2]
[421531025,1777828256000,-500.0,0.00016986,2]
[421531038,1777828256000,-1269.9,0.00016986,2]
[421531028,1777828256000,-696.37,0.00016986,2]
[421531031,1777828256000,-500.0,0.00016986,2]
[421531047,1777828256000,-500.0,0.00016986,2]
[421531029,1777828256000,-500.0,0.00016986,2]
[421531035,1777828256000,-500.0,0.00016986,2]
[421531034,1777828256000,-500.0,0.00016986,2]
[421531033,1777828256000,-500.0,0.00016986,2]
[421531040,1777828256000,-607.37,0.00016986,2]
[421531050,1777828256000,-335.95806445,0.00016986,2]
[421531039,1777828256000,-672.86,0.00016986,2]
[421531045,1777828256000,-631.67,0.00016986,2]
[421531046,1777828256000,-3467.79,0.00016986,2]
[421531042,1777828256000,-2045.98,0.00016986,2]
[421531041,1777828256000,-1648.35,0.00016986,2]
[421531051,1777828256000,-1418.78,0.00016986,2]
[421531043,1777828256000,-500.0,0.00016986,2]
[421531032,1777828256000,-500.0,0.00016986,2]
[421531078,1777828256000,-914.57,0.00016986,2]
[421531069,1777828256000,-500.0,0.00016986,2]
[421531080,1777828256000,-500.0,0.00016986,2]
[421531110,1777828256000,-500.0,0.00016986,2]
[421531114,1777828256000,-915.36,0.00016986,2]
[421531115,1777828256000,-570.49171566,0.00016986,2]
[421531113,1777828256000,-673.31,0.00016986,2]
[421531112,1777828256000,-500.0,0.00016986,2]
[421531116,1777828256000,-500.0,0.00016986,2]
[421531118,1777828256000,-2946.42,0.00016986,2]
[421531120,1777828256000,-232.49384667,0.00016986,2]
[421531122,1777828256000,-2319.93,0.00016986,2]
[421531121,1777828256000,-677.0,0.00016986,2]
[421531123,1777828256000,-500.0,0.00016986,2]
[421531119,1777828256000,-1676.56,0.00016986,2]
[421531108,1777828256000,-500.0,0.00016986,2]
[421531125,1777828256000,-500.0,0.00016986,2]
[421531129,1777828256000,-224.91519599,0.00016986,2]
[421531130,1777828256000,-500.0,0.00016986,2]
[421531127,1777828256000,-500.0,0.00016986,2]
[421531124,1777828256000,-500.0,0.00016986,2]
[421531126,1777828256000,-1332.51,0.00016986,2]
[421531131,1777828256000,-500.0,0.00016986,2]
[421531132,1777828256000,-500.0,0.00016986,2]
[421531133,1777828256000,-930.31,0.00016986,2]
[421531137,1777828256000,-500.0,0.00016986,2]
[421531134,1777828256000,-671.43,0.00016986,2]
[421531135,1777828256000,-6872.28,0.00016986,2]
[421531081,1777828256000,-500.0,0.00016986,2]
[421531128,1777828256000,-500.0,0.00016986,2]
[421531109,1777828256000,-500.0,0.00016986,2]
[421531136,1777828256000,-500.0,0.00016986,2]
[421531106,1777828256000,-500.0,0.00016986,2]
[421531077,1777828256000,-500.0,0.00016986,2]
[421531083,1777828256000,-3050.95,0.00016986,2]
[421531093,1777828256000,-500.0,0.00016986,2]
[421531087,1777828256000,-500.0,0.00016986,2]
[421531086,1777828256000,-500.0,0.00016986,2]
[421531082,1777828256000,-500.0,0.00016986,2]
[421531085,1777828256000,-500.0,0.00016986,2]
[421531111,1777828256000,-1640.08,0.00016986,2]
[421531088,1777828256000,-500.0,0.00016986,2]
[421531089,1777828256000,-500.0,0.00016986,2]
[421531091,1777828256000,-1149.43,0.00016986,2]
[421531090,1777828256000,-950.2,0.00016986,2]
[421531092,1777828256000,-1528.53,0.00016986,2]
[421531084,1777828256000,-1578.86,0.00016986,2]
[421531096,1777828256000,-500.0,0.00016986,2]
[421531117,1777828256000,-500.0,0.00016986,2]
[421531094,1777828256000,-3427.4,0.00016986,2]
[421531107,1777828256000,-500.0,0.00016986,2]
[421531103,1777828256000,-500.0,0.00016986,2]
[421531098,1777828256000,-663.73,0.00016986,2]
[421531102,1777828256000,-11122.647743,0.00016986,2]
[421531100,1777828256000,-845.51,0.00016986,2]
[421531101,1777828256000,-500.0,0.00016986,2]
[421531104,1777828256000,-500.0,0.00016986,2]
[421531097,1777828256000,-4147.94,0.00016986,2]
[421531105,1777828256000,-500.0,0.00016986,2]
[421531095,1777828256000,-500.0,0.00016986,2]
[421531099,1777828256000,-2592.11,0.00016986,2]
[421531172,1777828257000,-13239.19,0.00016986,2]
[421531170,1777828257000,-615.83,0.00016986,2]
[421531183,1777828257000,-954.7,0.00016986,2]
[421531176,1777828257000,-500.0,0.00016986,2]
[421531180,1777828257000,-1188.2,0.00016986,2]
[421531165,1777828257000,-500.0,0.00016986,2]
[421531182,1777828257000,-1083.99,0.00016986,2]
[421531171,1777828257000,-500.0,0.00016986,2]
[421531162,1777828257000,-687.79,0.00016986,2]
[421531161,1777828257000,-850.89,0.00016986,2]
[421531181,1777828257000,-500.0,0.00016986,2]
[421531173,1777828257000,-500.0,0.00016986,2]
[421531193,1777828257000,-500.0,0.00016986,2]
[421531179,1777828257000,-3642.87,0.00016986,2]
[421531177,1777828257000,-500.0,0.00016986,2]
[421531178,1777828257000,-1493.22,0.00016986,2]
[421531175,1777828257000,-500.0,0.00016986,2]
[421531184,1777828257000,-3727.75,0.00016986,2]
[421531185,1777828257000,-500.0,0.00016986,2]
[421531195,1777828257000,-500.0,0.00016986,2]
[421531196,1777828257000,-500.0,0.00016986,2]
[421531188,1777828257000,-500.0,0.00016986,2]
[421531186,1777828257000,-500.0,0.00016986,2]
[421531187,1777828257000,-500.0,0.00016986,2]
[421531163,1777828257000,-500.0,0.00016986,2]
[421531174,1777828257000,-2178.55,0.00016986,2]
[421531164,1777828257000,-19714.43,0.00016986,2]
[421531149,1777828257000,-500.0,0.00016986,2]
[421531160,1777828257000,-500.0,0.00016986,2]
[421531192,1777828257000,-500.0,0.00016986,2]
[421531142,1777828257000,-1000.0,0.00016986,2]
[421531139,1777828257000,-500.0,0.00016986,2]
[421531138,1777828257000,-393.81937951,0.00016986,2]
[421531141,1777828257000,-500.44,0.00016986,2]
[421531140,1777828257000,-500.0,0.00016986,2]
[421531143,1777828257000,-500.0,0.00016986,2]
[421531145,1777828257000,-1101.64,0.00016986,2]
[421531144,1777828257000,-500.0,0.00016986,2]
[421531147,1777828257000,-500.0,0.00016986,2]
[421531146,1777828257000,-500.0,0.00016986,2]
[421531150,1777828257000,-500.0,0.00016986,2]
[421531148,1777828257000,-546.79,0.00016986,2]
[421531151,1777828257000,-2654.2,0.00016986,2]
[421531153,1777828257000,-500.0,0.00016986,2]
[421531155,1777828257000,-1198.04,0.00016986,2]
[421531152,1777828257000,-500.0,0.00016986,2]
[421531154,1777828257000,-500.0,0.00016986,2]
[421531157,1777828257000,-500.0,0.00016986,2]
[421531168,1777828257000,-6896.26,0.00016986,2]
[421531159,1777828257000,-500.0,0.00016986,2]
[421531158,1777828257000,-500.0,0.00016986,2]
[421531169,1777828257000,-500.0,0.00016986,2]
[421531156,1777828257000,-500.0,0.00016986,2]
[421531167,1777828257000,-359.88081047,0.00016986,2]
[421531166,1777828257000,-641.41,0.00016986,2]
[421531191,1777828257000,-4807.92,0.00016986,2]
[421531190,1777828257000,-628.76689764,0.00016986,2]
[421531194,1777828257000,-500.0,0.00016986,2]
[421531236,1777828257000,-500.0,0.00016986,2]
[421531228,1777828257000,-564.53442367,0.00016986,2]
[421531225,1777828257000,-500.0,0.00016986,2]
[421531235,1777828257000,-581.67,0.00016986,2]
[421531237,1777828257000,-500.0,0.00016986,2]
[421531233,1777828257000,-500.0,0.00016986,2]
[421531229,1777828257000,-19122.11,0.00016986,2]
[421531231,1777828257000,-642.02,0.00016986,2]
[421531230,1777828257000,-808.8,0.00016986,2]
[421531232,1777828257000,-1000.0,0.00016986,2]
[421531227,1777828257000,-500.0,0.00016986,2]
[421531249,1777828257000,-500.0,0.00016986,2]
[421531234,1777828257000,-500.0,0.00016986,2]
[421531239,1777828257000,-610.07,0.00016986,2]
[421531244,1777828257000,-17361.56,0.00016986,2]
[421531240,1777828257000,-3402.9,0.00016986,2]
[421531238,1777828257000,-1380.88,0.00016986,2]
[421531241,1777828257000,-500.0,0.00016986,2]
[421531243,1777828257000,-500.0,0.00016986,2]
[421531246,1777828257000,-677.41,0.00016986,2]
[421531245,1777828257000,-1048.31,0.00016986,2]
[421531248,1777828257000,-11969.88,0.00016986,2]
[421531242,1777828257000,-500.0,0.00016986,2]
[421531247,1777828257000,-500.0,0.00016986,2]
[421531189,1777828257000,-2613.39,0.00016986,2]
[421531253,1777828257000,-500.0,0.00016986,2]
[421531250,1777828257000,-500.0,0.00016986,2]
[421531226,1777828257000,-500.0,0.00016986,2]
[421531251,1777828257000,-500.0,0.00016986,2]
[421531219,1777828257000,-647.52,0.00016986,2]
[421531197,1777828257000,-2166.78,0.00016986,2]
[421531201,1777828257000,-5394.85,0.00016986,2]
[421531224,1777828257000,-672.86,0.00016986,2]
[421531202,1777828257000,-500.0,0.00016986,2]
[421531200,1777828257000,-621.39,0.00016986,2]
[421531199,1777828257000,-500.0,0.00016986,2]
[421531205,1777828257000,-500.0,0.00016986,2]
[421531209,1777828257000,-6972.4,0.00016986,2]
[421531203,1777828257000,-500.0,0.00016986,2]
[421531198,1777828257000,-500.0,0.00016986,2]
[421531206,1777828257000,-635.76,0.00016986,2]
[421531204,1777828257000,-500.0,0.00016986,2]
[421531207,1777828257000,-500.0,0.00016986,2]
[421531208,1777828257000,-500.0,0.00016986,2]